fUSD/lending_fUSD_20240423
["ID","MTS","AMOUNT","RATE_DAILY","PERIOD"]
[323293550,1713877859334,-500.0,0.00012568,2]
[323293551,1713877859344,-1062.45,0.00012568,2]
[323293552,1713877859353,-937.53,0.00012568,2]
[323293553,1713877859363,-500.0,0.00012568,2]
[323293554,1713877859372,-150.0,0.00012568,2]
[323293555,1713877859382,-500.0,0.00012568,2]
[323293556,1713877859391,-500.0,0.00012568,2]
[323293557,1713877859400,-500.0,0.00012568,2]
[323293558,1713877859409,-740.01,0.00012568,2]
[323293559,1713877859418,-795.07,0.00012568,2]
[323293560,1713877859427,-500.0,0.00012568,2]
[323293561,1713877859436,-500.0,0.00012568,2]
[323293562,1713877859445,-500.0,0.00012568,2]
[323293563,1713877859454,-500.0,0.00012568,2]
[323293564,1713877859465,-500.0,0.00012568,2]
[323293565,1713877859474,-500.0,0.00012568,2]
[323293566,1713877859483,-545.54,0.00012568,2]
[323293567,1713877859493,-500.0,0.00012568,2]
[323293568,1713877859501,-500.0,0.00012568,2]
[323293569,1713877859510,-757.73,0.00012568,2]
[323293570,1713877859520,-500.0,0.00012568,2]
[323293571,1713877859529,-865.98,0.00012568,2]
[323293572,1713877859539,-500.0,0.00012568,2]
[323293573,1713877859548,-500.0,0.00012568,2]
[323293574,1713877859558,-15436.81,0.00012568,2]
[323293575,1713877859571,-500.0,0.00012568,2]
[323293576,1713877859580,-500.0,0.00012568,2]
[323293577,1713877859590,-1761.3,0.00012568,2]
[323293578,1713877859600,-500.0,0.00012568,2]
[323293579,1713877859609,-500.0,0.00012568,2]
[323293580,1713877859619,-500.0,0.00012568,2]
[323293581,1713877859628,-500.0,0.00012568,2]
[323293582,1713877859638,-786.32,0.00012568,2]
[323293583,1713877859648,-883.29,0.00012568,2]
[323293584,1713877859658,-569.42,0.00012568,2]
[323293585,1713877859669,-500.0,0.00012568,2]
[323293586,1713877859679,-500.0,0.00012568,2]
[323293587,1713877859689,-1006.3,0.00012568,2]
[323293588,1713877859699,-1558.69,0.00012568,2]
[323293589,1713877859708,-500.0,0.00012568,2]
[323293590,1713877859717,-500.0,0.00012568,2]
[323293591,1713877859727,-853.16,0.00012568,2]
[323293592,1713877859736,-1288.5,0.00012568,2]
[323293593,1713877859746,-500.0,0.00012568,2]
[323293594,1713877859755,-500.0,0.00012568,2]
[323293595,1713877859764,-508.36,0.00012568,2]
[323293596,1713877859773,-500.0,0.00012568,2]
[323293597,1713877859783,-500.0,0.00012568,2]
[323293598,1713877859792,-1200.91,0.00012568,2]
[323293599,1713877859801,-500.0,0.00012568,2]
[323293600,1713877859811,-500.0,0.00012568,2]
[323293601,1713877859820,-3407.99,0.00012568,2]
[323293602,1713877859830,-500.0,0.00012568,2]
[323293603,1713877859839,-500.0,0.00012568,2]
[323293604,1713877859848,-500.0,0.00012568,2]
[323293605,1713877859857,-500.0,0.00012568,2]
[323293606,1713877859867,-500.0,0.00012568,2]
[323293607,1713877859876,-500.0,0.00012568,2]
[323293608,1713877859886,-516.22,0.00012568,2]
[323293609,1713877859895,-14351.2,0.00012568,2]
[323293610,1713877859904,-674.61,0.00012568,2]
[323293611,1713877859914,-500.0,0.00012568,2]
[323293612,1713877859923,-1064.52,0.00012568,2]
[323293613,1713877859932,-500.0,0.00012568,2]
[323293614,1713877859941,-1870.78,0.00012568,2]
[323293615,1713877859950,-558.36,0.00012568,2]
[323293616,1713877859959,-901.68,0.00012568,2]
[323293617,1713877859968,-500.0,0.00012568,2]
[323293618,1713877859978,-500.41,0.00012568,2]
[323293619,1713877859987,-2360.25,0.00012568,2]
[323293620,1713877859997,-2740.74,0.00012568,2]
[323293621,1713877860006,-1680.98,0.00012568,2]
[323293622,1713877860015,-500.0,0.00012568,2]
[323293623,1713877860025,-559.42,0.00012568,2]
[323293624,1713877860034,-500.0,0.00012568,2]
[323293625,1713877860044,-2277.71,0.00012568,2]
[323293626,1713877860054,-500.0,0.00012568,2]
[323293627,1713877860064,-568.99,0.00012568,2]
[323293628,1713877860074,-3269.03,0.00012568,2]
[323293629,1713877860084,-1874.1,0.00012568,2]
[323293630,1713877860094,-571.51,0.00012568,2]
[323293631,1713877860106,-500.0,0.00012568,2]
[323293632,1713877860116,-500.0,0.00012568,2]
[323293633,1713877860126,-2169.86,0.00012568,2]
[323293634,1713877860137,-215.41388575,0.00012568,2]
[323293635,1713877860147,-586.86,0.00012568,2]
[323293636,1713877860157,-500.0,0.00012568,2]
[323293637,1713877860168,-500.0,0.00012568,2]
[323293638,1713877860178,-15151.92,0.00012568,2]
[323293639,1713877860188,-500.0,0.00012568,2]
[323293640,1713877860198,-500.0,0.00012568,2]
[323293641,1713877860208,-500.0,0.00012568,2]
[323293642,1713877860218,-500.0,0.00012568,2]
[323293643,1713877860229,-1597.42,0.00012568,2]
[323293644,1713877860238,-5502.34,0.00012568,2]
[323293645,1713877860248,-619.89,0.00012568,2]
[323293646,1713877860259,-500.0,0.00012568,2]
[323293647,1713877860269,-500.0,0.00012568,2]
[323293648,1713877860279,-500.0,0.00012568,2]
[323293649,1713877860290,-1040.66,0.00012568,2]
[323293650,1713877860299,-562.78,0.00012569,2]
[323293651,1713877860310,-304.97901686,0.00012569,2]
[323293652,1713877860321,-500.0,0.00012569,2]
[323293653,1713877860331,-500.0,0.00012569,2]
[323293654,1713877860341,-542.35,0.00012569,2]
[323293655,1713877860353,-500.0,0.00012569,2]
[323293656,1713877860364,-555.58,0.00012569,2]
[323293657,1713877860375,-500.0,0.00012569,2]
[323293658,1713877860386,-500.0,0.00012569,2]
[323293659,1713877860395,-500.0,0.00012569,2]
[323293660,1713877860406,-731.08,0.00012569,2]
[323293661,1713877860415,-1272.4,0.00012569,2]
[323293662,1713877860425,-500.0,0.00012569,2]
[323293663,1713877860436,-737.04,0.00012569,2]
[323293664,1713877860447,-500.0,0.00012569,2]
[323293665,1713877860457,-802.03,0.00012569,2]
[323293666,1713877860467,-500.0,0.00012569,2]
[323293667,1713877860477,-500.0,0.00012569,2]
[323293668,1713877860486,-500.0,0.00012569,2]
[323293669,1713877860496,-500.0,0.00012569,2]
[323293670,1713877860505,-500.0,0.00012569,2]
[323293671,1713877860516,-500.0,0.00012569,2]
[323293672,1713877860527,-500.0,0.00012569,2]
[323293673,1713877860537,-666.77,0.00012569,2]
[323293674,1713877860547,-500.0,0.00012569,2]
[323293675,1713877860556,-500.0,0.00012569,2]
[323293676,1713877860571,-500.0,0.00012569,2]
[323293677,1713877860581,-500.0,0.00012569,2]
[323293678,1713877860591,-500.0,0.00012569,2]
[323293679,1713877860603,-568.94,0.00012569,2]
[323293680,1713877860614,-764.92,0.00012569,2]
[323293681,1713877860624,-500.0,0.00012569,2]
[323293682,1713877860634,-551.3,0.00012569,2]
[323293683,1713877860645,-500.0,0.00012569,2]
[323293684,1713877860655,-500.0,0.00012569,2]
[323293685,1713877860666,-500.0,0.00012569,2]
[323293686,1713877860675,-500.0,0.00012569,2]
[323293687,1713877860686,-500.0,0.00012569,2]
[323293688,1713877860696,-500.0,0.00012569,2]
[323293689,1713877860706,-500.0,0.00012569,2]
[323293690,1713877860717,-500.0,0.00012569,2]
[323293691,1713877860728,-500.0,0.00012569,2]
[323293692,1713877860738,-500.0,0.00012569,2]
[323293693,1713877860749,-591.97,0.00012569,2]
[323293694,1713877860758,-500.0,0.00012569,2]
[323293695,1713877860767,-500.0,0.00012569,2]
[323293696,1713877860776,-517.91,0.00012569,2]
[323293697,1713877860785,-500.0,0.00012569,2]
[323293698,1713877860794,-500.0,0.00012569,2]
[323293699,1713877860804,-500.0,0.00012569,2]
[323293700,1713877860814,-500.0,0.00012569,2]
[323293701,1713877860824,-500.0,0.00012569,2]
[323293702,1713877860833,-938.53,0.00012569,2]
[323293703,1713877860842,-1087.7,0.00012569,2]
[323293704,1713877860852,-720.91,0.00012569,2]
[323293705,1713877860861,-671.85,0.00012569,2]
[323293706,1713877860871,-500.0,0.00012569,2]
[323293707,1713877860880,-636.36,0.00012569,2]
[323293708,1713877860890,-660.29,0.00012569,2]
[323293709,1713877860899,-500.0,0.00012569,2]
[323293710,1713877860909,-500.0,0.00012569,2]
[323293711,1713877860918,-500.0,0.00012569,2]
[323293712,1713877860930,-500.0,0.00012569,2]
[323293713,1713877860940,-32593.75,0.00012569,2]
[323293714,1713877860949,-500.0,0.00012569,2]
[323293715,1713877860959,-549.78,0.00012569,2]
[323293716,1713877860969,-516.45,0.00012569,2]
[323293717,1713877860978,-659.77,0.00012569,2]
[323293718,1713877860988,-2353.59,0.00012569,2]
[323293719,1713877860997,-500.0,0.00012569,2]
[323293720,1713877861007,-427.98241205,0.00012569,2]
[323293721,1713877861016,-637.08,0.00012569,2]
[323293722,1713877861027,-2104.16,0.00012569,2]
[323293723,1713877861037,-5654.28,0.00012569,2]
[323293724,1713877861047,-500.0,0.00012569,2]
[323293725,1713877861057,-500.0,0.00012569,2]
[323293726,1713877861067,-500.0,0.00012569,2]
[323293727,1713877861077,-500.0,0.00012569,2]
[323293728,1713877861086,-500.0,0.00012569,2]
[323293729,1713877861096,-1800.4,0.00012569,2]
[323293730,1713877861107,-500.0,0.00012569,2]
[323293731,1713877861117,-500.0,0.00012569,2]
[323293732,1713877861127,-500.0,0.00012569,2]
[323293733,1713877861137,-500.0,0.00012569,2]
[323293734,1713877861147,-796.65,0.00012569,2]
[323293735,1713877861158,-1502.65,0.00012569,2]
[323293736,1713877861168,-500.0,0.00012569,2]
[323293737,1713877861178,-5865.59,0.00012569,2]
[323293738,1713877861189,-961.44,0.00012569,2]
[323293739,1713877861200,-500.0,0.00012569,2]
[323293740,1713877861211,-1364.17,0.00012569,2]
[323293741,1713877861221,-1868.43,0.00012569,2]
[323293742,1713877861232,-2815.58,0.00012569,2]
[323293743,1713877861243,-523.23,0.00012569,2]
[323293744,1713877861253,-500.0,0.00012569,2]
[323293745,1713877861263,-500.0,0.00012569,2]
[323293746,1713877861273,-500.0,0.00012569,2]
[323293747,1713877861283,-500.0,0.00012569,2]
[323293748,1713877861292,-500.0,0.00012569,2]
[323293749,1713877861303,-500.0,0.00012569,2]
[323293750,1713877861313,-506.28,0.00012569,2]
[323293751,1713877861324,-1772.14,0.00012569,2]
[323293752,1713877861335,-500.0,0.00012569,2]
[323293753,1713877861345,-524.09,0.00012569,2]
[323293754,1713877861356,-500.0,0.00012569,2]
[323293755,1713877861365,-500.0,0.00012569,2]
[323293756,1713877861374,-728.49,0.00012569,2]
[323293757,1713877861384,-500.0,0.0001257,2]
[323293758,1713877861394,-733.91,0.0001257,2]
[323293759,1713877861403,-500.0,0.0001257,2]
[323293760,1713877861412,-500.0,0.0001257,2]
[323293761,1713877861421,-500.0,0.0001257,2]
[323293762,1713877861430,-538.13,0.0001257,2]
[323293763,1713877861440,-500.0,0.0001257,2]
[323293764,1713877861449,-571.88,0.0001257,2]
[323293765,1713877861460,-500.0,0.0001257,2]
[323293766,1713877861470,-648.04,0.0001257,2]
[323293767,1713877861481,-604.76,0.0001257,2]
[323293768,1713877861492,-982.09,0.0001257,2]
[323293769,1713877861503,-500.0,0.0001257,2]
[323293770,1713877861513,-500.0,0.0001257,2]
[323293771,1713877861523,-500.0,0.0001257,2]
[323293772,1713877861533,-500.0,0.0001257,2]
[323293773,1713877861543,-500.0,0.0001257,2]
[323293774,1713877861554,-500.0,0.0001257,2]
[323293775,1713877861568,-500.0,0.0001257,2]
[323293776,1713877861577,-500.0,0.0001257,2]
[323293777,1713877861587,-500.0,0.0001257,2]
[323293778,1713877861596,-500.0,0.0001257,2]
[323293779,1713877861606,-1145.22,0.0001257,2]
[323293780,1713877861617,-500.0,0.0001257,2]
[323293781,1713877861627,-500.0,0.0001257,2]
[323293782,1713877861636,-500.0,0.0001257,2]
[323293783,1713877861648,-500.0,0.0001257,2]
[323293784,1713877861658,-500.0,0.0001257,2]
[323293785,1713877861669,-1079.95,0.0001257,2]
[323293786,1713877861679,-1680.68,0.0001257,2]
[323293787,1713877861689,-500.0,0.0001257,2]
[323293788,1713877861699,-500.0,0.0001257,2]
[323293789,1713877861708,-574.60481764,0.0001257,2]
[323293790,1713877861718,-500.0,0.0001257,2]
[323293791,1713877861729,-500.0,0.0001257,2]
[323293792,1713877861740,-500.0,0.0001257,2]
[323293793,1713877861750,-802.95,0.0001257,2]
[323293794,1713877861760,-500.0,0.0001257,2]
[323293795,1713877861770,-500.0,0.0001257,2]
[323293796,1713877861779,-570.08,0.0001257,2]
[323293797,1713877861789,-500.0,0.0001257,2]
[323293798,1713877861799,-500.0,0.0001257,2]
[323293799,1713877861809,-500.0,0.0001257,2]
[323293800,1713877861820,-500.0,0.0001257,2]
[323293801,1713877861830,-500.0,0.0001257,2]
[323293802,1713877861839,-500.0,0.0001257,2]
[323293803,1713877861850,-500.0,0.0001257,2]
[323293804,1713877861860,-1463.93,0.0001257,2]
[323293805,1713877861870,-500.0,0.0001257,2]
[323293806,1713877861881,-500.0,0.0001257,2]
[323293807,1713877861891,-500.0,0.0001257,2]
[323293808,1713877861901,-500.0,0.0001257,2]
[323293809,1713877861911,-500.0,0.0001257,2]
[323293810,1713877861921,-500.0,0.0001257,2]
[323293811,1713877861931,-500.0,0.0001257,2]
[323293812,1713877861941,-1121.67,0.0001257,2]
[323293813,1713877861951,-678.49,0.0001257,2]
[323293814,1713877861962,-500.0,0.0001257,2]
[323293815,1713877861973,-500.0,0.0001257,2]
[323293816,1713877861983,-500.0,0.0001257,2]
[323293817,1713877861993,-500.0,0.0001257,2]
[323293818,1713877862004,-500.0,0.0001257,2]
[323293819,1713877862013,-235.35832167,0.0001257,2]
[323293820,1713877862023,-500.0,0.0001257,2]
[323293821,1713877862034,-500.0,0.0001257,2]
[323293822,1713877862043,-1019.67,0.0001257,2]
[323293823,1713877862054,-500.0,0.0001257,2]
[323293824,1713877862064,-500.0,0.0001257,2]
[323293825,1713877862074,-500.0,0.0001257,2]
[323293826,1713877862084,-500.0,0.0001257,2]
[323293827,1713877862094,-1504.69,0.0001257,2]
[323293828,1713877862105,-500.0,0.0001257,2]
[323293829,1713877862116,-562.1,0.0001257,2]
[323293830,1713877862127,-608.33,0.0001257,2]
[323293831,1713877862137,-655.57,0.0001257,2]
[323293832,1713877862149,-500.0,0.0001257,2]
[323293833,1713877862159,-500.0,0.0001257,2]
[323293834,1713877862169,-752.1,0.0001257,2]
[323293835,1713877862179,-500.0,0.0001257,2]
[323293836,1713877862189,-500.0,0.0001257,2]
[323293837,1713877862199,-500.0,0.0001257,2]
[323293838,1713877862209,-500.0,0.0001257,2]
[323293839,1713877862220,-500.0,0.0001257,2]
[323293840,1713877862230,-500.0,0.0001257,2]
[323293841,1713877862241,-500.0,0.0001257,2]
[323293842,1713877862251,-500.0,0.0001257,2]
[323293843,1713877862261,-500.0,0.0001257,2]
[323293844,1713877862271,-500.0,0.0001257,2]
[323293845,1713877862282,-653.42,0.0001257,2]
[323293846,1713877862292,-500.0,0.0001257,2]
[323293847,1713877862303,-501.7,0.0001257,2]
[323293848,1713877862313,-500.0,0.0001257,2]
[323293849,1713877862323,-500.0,0.0001257,2]
[323293850,1713877862333,-500.0,0.0001257,2]
[323293851,1713877862344,-500.0,0.0001257,2]
[323293852,1713877862355,-500.0,0.0001257,2]
[323293853,1713877862365,-500.0,0.0001257,2]
[323293854,1713877862375,-500.0,0.0001257,2]
[323293855,1713877862386,-1508.24,0.0001257,2]
[323293856,1713877862397,-520.28,0.0001257,2]
[323293857,1713877862407,-500.0,0.0001257,2]
[323293858,1713877862418,-500.0,0.0001257,2]
[323293859,1713877862428,-29.26443665,0.0001257,2]
[323293860,1713877862448,-470.73556335,0.0001257,2]
[323293861,1713877862458,-500.0,0.0001257,2]
[323293862,1713877862468,-500.0,0.0001257,2]
[323293863,1713877862479,-1043.36,0.0001257,2]
[323293864,1713877862490,-500.0,0.0001257,2]
[323293865,1713877862501,-500.0,0.0001257,2]
[323293866,1713877862511,-2100.0,0.00012591,2]
[323293867,1713877862522,-217.47374801,0.00012593,2]
[323293868,1713877862533,-239.05,0.00012595,2]
[323293869,1713877862544,-157.042319,0.00012598,2]
[323293870,1713877862554,-157.042319,0.00012598,2]
[323293871,1713877862567,-157.042319,0.00012598,2]
[323293872,1713877862578,-157.042319,0.00012598,2]
[323293873,1713877862589,-157.042319,0.00012598,2]
[323293874,1713877862600,-1000.0,0.000126,2]
[323293875,1713877862612,-500.0,0.000126,4]
[323293876,1713877862622,-14667.65910576,0.00012603,2]
[323293877,1713877862633,-1417.32798383,0.00012634,2]
[323293878,1713877862645,-2371.11337354,0.00012639,2]
[323293879,1713877862656,-157.042319,0.00012648,2]
[323293880,1713877862666,-157.042319,0.00012648,2]
[323293881,1713877862676,-157.042319,0.00012648,2]
[323293882,1713877862686,-157.042319,0.00012648,2]
[323293883,1713877862696,-157.042319,0.00012648,2]
[323293884,1713877862706,-300.0,0.00012648,2]
[323293885,1713877862716,-12108.81238469,0.00012666,2]
[323293886,1713877862726,-155.20222162,0.00012694,2]
[323293887,1713877862736,-157.042319,0.00012698,2]
[323293888,1713877862747,-157.042319,0.00012698,2]
[323293889,1713877862758,-157.042319,0.00012698,2]
[323293890,1713877862769,-157.042319,0.00012698,2]
[323293891,1713877862780,-157.042319,0.00012698,2]
[323293892,1713877862790,-500.0,0.000127,4]
[323293893,1713877862801,-14667.65910576,0.00012702,2]
[323293894,1713877862811,-157.042319,0.00012748,2]
[323293895,1713877862822,-157.042319,0.00012748,2]
[323293896,1713877862833,-157.042319,0.00012748,2]
[323293897,1713877862843,-157.042319,0.00012748,2]
[323293898,1713877862856,-157.042319,0.00012748,2]
[323293899,1713877862867,-1516.22,0.00012792,2]
[323293900,1713877862878,-499.999,0.00012797,2]
[323293901,1713877862889,-157.042319,0.00012798,2]
[323293902,1713877862900,-157.042319,0.00012798,2]
[323293903,1713877862910,-157.042319,0.00012798,2]
[323293904,1713877862922,-157.042319,0.00012798,2]
[323293905,1713877862933,-157.042319,0.00012798,2]
[323293906,1713877862944,-254.88867539,0.000128,2]
[323293907,1713877862954,-638.88848711,0.000128,2]
[323293908,1713877862964,-500.0,0.000128,4]
[323293909,1713877862975,-14667.65910576,0.00012801,2]
[323293910,1713877862986,-1300.0,0.00012802,2]
[323293911,1713877862996,-23575.94564991,0.00012833,2]
[323293916,1713877933603,2600.0,0.0001061,2]
[323293917,1713877976559,621.92,0.00011053,2]
[323293918,1713878072467,538.53,9.076e-05,2]
[323293919,1713878079283,2218.36,0.0001095,2]
[323293920,1713878091210,158.42,0.00011032,2]
[323293921,1713878126988,-10000.0,0.00011243,2]
[323293922,1713878181047,163.98,0.00010893,2]
[323293923,1713878193936,8664.0,0.00010893,2]
[323293924,1713878209015,-10000.0,0.00011243,2]
[323293931,1713878347756,157.45866333,0.00011142,2]
[323293932,1713878371852,176.6,0.00010722,2]
[323293935,1713878566756,535.5,8.804e-05,2]
[323293936,1713878567085,535.5,0.00011068,2]
[323293937,1713878570015,502.46,0.00010824,2]
[323293938,1713878585345,1664.83,0.00010824,2]
[323293943,1713878664025,250.0,0.00010752,2]
[323294019,1713879031728,-2471.0,0.00011238,2]
[323294020,1713879031738,-1000.0,0.00011242,2]
[323294021,1713879031748,-2129.9724767,0.00011243,2]
[323294022,1713879031803,-30927.55933538,0.00011243,2]
[323294023,1713879031812,-10204.54682852,0.00011244,2]
[323294024,1713879031822,-190.69,0.00011308,2]
[323294025,1713879031831,-190.69,0.00011364,2]
[323294026,1713879031841,-20466.2094,0.00011371,2]
[323294027,1713879031851,-2500.0,0.00011371,2]
[323294028,1713879031860,-40034.4948,0.00011372,2]
[323294029,1713879031870,-22821.2727,0.00011372,2]
[323294030,1713879031880,-3144.52,0.00011372,2]
[323294031,1713879031889,-10000.0,0.00011373,2]
[323294032,1713879031899,-369.31527685,0.000114,2]
[323294033,1713879031909,-500.0,0.00011469,2]
[323294034,1713879031918,-500.0,0.00011469,2]
[323294035,1713879031927,-500.0,0.00011469,2]
[323294036,1713879031936,-500.0,0.00011469,2]
[323294037,1713879031949,-2188.35,0.0001147,2]
[323294038,1713879031958,-500.0,0.0001147,2]
[323294039,1713879031967,-564.76988194,0.0001147,2]
[323294040,1713879031976,-500.0,0.0001147,2]
[323294041,1713879031986,-500.0,0.0001147,2]
[323294042,1713879031995,-500.0,0.0001147,2]
[323294043,1713879032005,-1394.36,0.0001147,2]
[323294044,1713879032014,-816.8,0.0001147,2]
[323294045,1713879032024,-500.0,0.0001147,2]
[323294046,1713879032034,-500.0,0.0001147,2]
[323294047,1713879032043,-500.0,0.0001147,2]
[323294048,1713879032055,-910.14,0.0001147,2]
[323294049,1713879032064,-500.0,0.0001147,2]
[323294050,1713879032073,-500.0,0.0001147,2]
[323294051,1713879032082,-3076.54,0.0001147,2]
[323294052,1713879032091,-1296.05,0.0001147,2]
[323294053,1713879032101,-314.22,0.0001147,2]
[323294054,1713879032110,-624.36243477,0.0001147,2]
[323294055,1713879032120,-500.0,0.0001147,2]
[323294056,1713879032129,-544.58,0.0001147,2]
[323294057,1713879032138,-508.61,0.0001147,2]
[323294058,1713879032147,-1145.07,0.0001147,2]
[323294059,1713879032158,-855.89,0.0001147,2]
[323294060,1713879032167,-500.0,0.0001147,2]
[323294061,1713879032177,-518.81,0.0001147,2]
[323294062,1713879032186,-830.47,0.0001147,2]
[323294063,1713879032196,-241.22721757,0.0001147,2]
[323294071,1713879032274,-325.80278243,0.0001147,2]
[323294073,1713879032284,-914.98702814,0.0001147,2]
[323294077,1713879032313,-626.85191041,0.0001147,2]
[323294080,1713879032331,-1281.18106145,0.0001147,2]
[323294082,1713879032342,-500.0,0.0001147,2]
[323294084,1713879032352,-500.0,0.0001147,2]
[323294086,1713879032361,-500.0,0.0001147,2]
[323294088,1713879032371,-500.0,0.0001147,2]
[323294090,1713879032381,-2294.75,0.0001147,2]
[323294092,1713879032390,-191.03321477,0.0001147,2]
[323294095,1713879032403,-308.96678523,0.0001147,2]
[323294097,1713879032413,-559.13,0.0001147,2]
[323294099,1713879032423,-1838.04,0.0001147,2]
[323294101,1713879032433,-500.0,0.0001147,2]
[323294103,1713879032443,-1806.62,0.0001147,2]
[323294105,1713879032452,-11361.37,0.0001147,2]
[323294107,1713879032462,-680.07,0.0001147,2]
[323294109,1713879032471,-500.0,0.0001147,2]
[323294111,1713879032480,-500.0,0.0001147,2]
[323294113,1713879032490,-894.91,0.0001147,2]
[323294115,1713879032500,-1660.22,0.0001147,2]
[323294117,1713879032510,-2077.87238919,0.0001147,2]
[323294121,1713879032545,-3730.23761081,0.0001147,2]
[323294123,1713879032560,-500.0,0.0001147,2]
[323294126,1713879032571,-551.97,0.0001147,2]
[323294128,1713879032581,-500.0,0.0001147,2]
[323294130,1713879032591,-500.0,0.0001147,2]
[323294132,1713879032601,-604.3,0.0001147,2]
[323294133,1713879032613,-467.05858149,0.0001147,2]
[323294169,1713879037797,-500.0,0.00011469,2]
[323294170,1713879037809,-115.46999998,0.00011469,2]
[323294171,1713879037861,-310.85270926,0.00011469,2]
[323294172,1713879037873,-73.67729076,0.00011469,2]
[323294173,1713879037883,-500.0,0.00011469,2]
[323294174,1713879037894,-32.94141851,0.0001147,2]
[323294175,1713879037903,-162.15964898,0.0001147,2]
[323294176,1713879037915,-373.57,0.0001147,2]
[323294177,1713879038002,-50.89035102,0.0001147,2]
[323294178,1713879038011,-2254.8,0.0001147,2]
[323294179,1713879038021,-618.54,0.0001147,2]
[323294180,1713879038030,-465.73495814,0.0001147,2]
[323294181,1713879038041,-34.26504186,0.0001147,2]
[323294182,1713879038051,-784.23227163,0.0001147,2]
[323294183,1713879038095,-4785.59772837,0.0001147,2]
[323294184,1713879038104,-789.79,0.0001147,2]
[323294185,1713879038114,-1722.31,0.0001147,2]
[323294186,1713879038123,-811.09,0.0001147,2]
[323294188,1713879038133,-500.0,0.0001147,2]
[323294190,1713879038142,-495.65707416,0.0001147,2]
[323294192,1713879038151,-2712.98,0.0001147,2]
[323294194,1713879038160,-500.0,0.0001147,2]
[323294196,1713879038169,-500.0,0.0001147,2]
[323294198,1713879038179,-558.75,0.0001147,2]
[323294200,1713879038188,-571.91,0.0001147,2]
[323294202,1713879038197,-810.57,0.0001147,2]
[323294204,1713879038206,-500.0,0.0001147,2]
[323294206,1713879038215,-500.0,0.0001147,2]
[323294208,1713879038224,-500.0,0.0001147,2]
[323294210,1713879038234,-1124.2,0.0001147,2]
[323294212,1713879038243,-532.22,0.0001147,2]
[323294214,1713879038253,-500.0,0.0001147,2]
[323294216,1713879038262,-12796.31,0.0001147,2]
[323294219,1713879038271,-173.51,0.0001147,2]
[323294221,1713879038281,-22994.43,0.0001147,2]
[323294222,1713879038291,-500.0,0.00011471,2]
[323294225,1713879038300,-921.24,0.00011471,2]
[323294226,1713879038311,-500.0,0.00011471,2]
[323294229,1713879038320,-739.64,0.00011471,2]
[323294230,1713879038330,-500.0,0.00011471,2]
[323294232,1713879038339,-840.34,0.00011471,2]
[323294234,1713879038349,-500.0,0.00011471,2]
[323294237,1713879038358,-500.0,0.00011471,2]
[323294238,1713879038367,-992.52,0.00011471,2]
[323294240,1713879038376,-602.21,0.00011471,2]
[323294242,1713879038385,-500.0,0.00011471,2]
[323294244,1713879038395,-500.0,0.00011471,2]
[323294246,1713879038404,-500.0,0.00011471,2]